[Event "*** Titled Tuesday Blitz"]
[Site "Chess.com"]
[Date "2021.03.09"]
[Round "7"]
[White "IMVoja"]
[Black "Mikhail_Golubev"]
[Result "0-1"]
[WhiteElo "2406"]
[BlackElo "2570"]
[TimeControl "180+1"]
[EndTime "11:21:28 PST"]
[Termination "Mikhail_Golubev won on time"]

1. e4 {[%clk 0:03:00.9]} 1... c5 {[%clk 0:02:59.6]} 2. Nf3 {[%clk 0:03:00.4]}
2... d6 {[%clk 0:02:59.9]} 3. Bb5+ {[%clk 0:02:59.9]} 3... Nc6 {[%clk
0:02:59.7]} 4. Bxc6+ {[%clk 0:02:56.6]} 4... bxc6 {[%clk 0:02:59]} 5. h3 {[%clk
0:02:57.5]} 5... e5 {[%clk 0:02:55]} 6. O-O {[%clk 0:02:53.1]} 6... Nf6 {[%clk
0:02:54.7]} 7. Re1 {[%clk 0:02:47.3]} 7... Be7 {[%clk 0:02:54.5]} 8. c3 {[%clk
0:02:47.7]} 8... O-O {[%clk 0:02:53.7]} 9. d4 {[%clk 0:02:47.9]} 9... cxd4
{[%clk 0:02:53.9]} 10. cxd4 {[%clk 0:02:48.4]} 10... exd4 {[%clk 0:02:54.2]} 11.
Nxd4 {[%clk 0:02:48.4]} 11... Bd7 {[%clk 0:02:52.9]} 12. Nc3 {[%clk 0:02:48.6]}
12... Re8 {[%clk 0:02:50]} 13. Bf4 {[%clk 0:02:44.1]} 13... Qb6 {[%clk
0:02:45.1]} 14. b3 {[%clk 0:02:35]} 14... Rad8 {[%clk 0:02:42.5]} 15. Rc1 {[%clk
0:02:30.9]} 15... c5 {[%clk 0:02:29.3]} 16. Nc2 {[%clk 0:02:17.9]} 16... Bc6
{[%clk 0:02:28.1]} 17. f3 {[%clk 0:02:05.9]} 17... d5 {[%clk 0:02:24.3]} 18.
exd5 {[%clk 0:01:53.7]} 18... Nxd5 {[%clk 0:02:23.4]} 19. Nxd5 {[%clk
0:01:53.2]} 19... Rxd5 {[%clk 0:01:59.3]} 20. Qe2 {[%clk 0:01:43.6]} 20... Bf8
{[%clk 0:01:36.7]} 21. Qf2 {[%clk 0:01:28.7]} 21... Red8 {[%clk 0:01:36.7]} 22.
Ne3 {[%clk 0:01:19.7]} 22... Rd2 {[%clk 0:01:31.2]} 23. Re2 {[%clk 0:01:19.3]}
23... Rxe2 {[%clk 0:01:25.2]} 24. Qxe2 {[%clk 0:01:18.6]} 24... Re8 {[%clk
0:01:19.5]} 25. Qf2 {[%clk 0:01:16.8]} 25... Bb5 {[%clk 0:01:01.1]} 26. Nc4
{[%clk 0:01:13.9]} 26... Qf6 {[%clk 0:01:00.3]} 27. Be3 {[%clk 0:00:57.9]} 27...
Qf5 {[%clk 0:01:00.4]} 28. Re1 {[%clk 0:00:46.7]} 28... Bxc4 {[%clk 0:00:58.3]}
29. bxc4 {[%clk 0:00:46.7]} 29... Qd3 {[%clk 0:00:55]} 30. Re2 {[%clk
0:00:24.4]} 30... Qxc4 {[%clk 0:00:49.4]} 31. Rc2 {[%clk 0:00:23.1]} 31... Qa4
{[%clk 0:00:32.7]} 32. Bxc5 {[%clk 0:00:20.8]} 32... Rc8 {[%clk 0:00:28.6]} 33.
Rc1 {[%clk 0:00:01.2]} 33... g6 {[%clk 0:00:23.8]} 0-1

[Event "*** Titled Tuesday Blitz"]
[Site "Chess.com"]
[Date "2021.03.09"]
[Round "7"]
[White "SilviusTiberius"]
[Black "AlexeiShirov"]
[Result "0-1"]
[WhiteElo "2521"]
[BlackElo "2848"]
[TimeControl "180+1"]
[EndTime "11:21:29 PST"]
[Termination "AlexeiShirov won by resignation"]

1. e4 {[%clk 0:03:00.9]} 1... e5 {[%clk 0:02:57.3]} 2. Nf3 {[%clk 0:03:01.3]}
2... Nc6 {[%clk 0:02:57.3]} 3. Bb5 {[%clk 0:03:01.7]} 3... a6 {[%clk 0:02:56.7]}
4. Ba4 {[%clk 0:03:02.2]} 4... Nf6 {[%clk 0:02:56.7]} 5. O-O {[%clk 0:03:02.6]}
5... b5 {[%clk 0:02:56.6]} 6. Bb3 {[%clk 0:03:03]} 6... Bc5 {[%clk 0:02:56.5]}
7. c3 {[%clk 0:03:02.5]} 7... d6 {[%clk 0:02:56.1]} 8. d4 {[%clk 0:03:02.8]}
8... Bb6 {[%clk 0:02:56.3]} 9. Be3 {[%clk 0:03:02.2]} 9... O-O {[%clk
0:02:53.8]} 10. Nbd2 {[%clk 0:03:00.3]} 10... Bg4 {[%clk 0:02:52.4]} 11. dxe5
{[%clk 0:02:50.7]} 11... Bxe3 {[%clk 0:02:48]} 12. exf6 {[%clk 0:02:48.4]} 12...
Bxd2 {[%clk 0:02:38.3]} 13. fxg7 {[%clk 0:02:46.1]} 13... Kxg7 {[%clk
0:02:19.1]} 14. Qxd2 {[%clk 0:02:44.9]} 14... Bxf3 {[%clk 0:02:17.9]} 15. gxf3
{[%clk 0:02:45.8]} 15... Kh8 {[%clk 0:02:04]} 16. Kh1 {[%clk 0:02:43.6]} 16...
Qf6 {[%clk 0:01:57]} 17. f4 {[%clk 0:02:37.4]} 17... Rae8 {[%clk 0:01:55.8]} 18.
f3 {[%clk 0:02:29.5]} 18... Rg8 {[%clk 0:01:49.6]} 19. Rg1 {[%clk 0:02:28]}
19... Rg6 {[%clk 0:01:47.6]} 20. f5 {[%clk 0:02:24.1]} 20... Rh6 {[%clk
0:01:44.7]} 21. Rg3 {[%clk 0:02:08.5]} 21... Rg8 {[%clk 0:01:37.8]} 22. Rxg8+
{[%clk 0:02:06.1]} 22... Kxg8 {[%clk 0:01:37.3]} 23. Rg1+ {[%clk 0:02:06.3]}
23... Kf8 {[%clk 0:01:36.9]} 24. f4 {[%clk 0:01:24.7]} 24... Qh4 {[%clk
0:01:27.7]} 25. Rg2 {[%clk 0:01:14.9]} 25... Qh3 {[%clk 0:01:11.8]} 26. Qe2
{[%clk 0:01:03.8]} 26... Rh4 {[%clk 0:01:03.7]} 27. Qf2 {[%clk 0:00:31.4]} 27...
Rg4 {[%clk 0:01:00.4]} 28. Bd1 {[%clk 0:00:20.9]} 28... Rxg2 {[%clk 0:00:59]}
29. Qxg2 {[%clk 0:00:21.8]} 29... Qe3 {[%clk 0:00:57.8]} 30. Qf3 {[%clk
0:00:15.7]} 30... Qe1+ {[%clk 0:00:51.9]} 31. Kg2 {[%clk 0:00:15.1]} 31... Qd2+
{[%clk 0:00:51.5]} 32. Be2 {[%clk 0:00:14.5]} 32... Qxb2 {[%clk 0:00:49.9]} 33.
e5 {[%clk 0:00:14.9]} 33... dxe5 {[%clk 0:00:47.7]} 34. fxe5 {[%clk 0:00:11.1]}
34... Nxe5 {[%clk 0:00:46.1]} 35. Qe3 {[%clk 0:00:11.6]} 35... Ng4 {[%clk
0:00:42.6]} 36. Qc5+ {[%clk 0:00:09.5]} 36... Kg7 {[%clk 0:00:41.1]} 37. Qd4+
{[%clk 0:00:09.8]} 37... Nf6 {[%clk 0:00:40.2]} 38. Kf2 {[%clk 0:00:10.3]} 38...
Qxa2 {[%clk 0:00:38.4]} 39. Qf4 {[%clk 0:00:10.5]} 39... h6 {[%clk 0:00:33.9]}
40. Qg3+ {[%clk 0:00:10.8]} 40... Kh7 {[%clk 0:00:33.6]} 41. Qe5 {[%clk
0:00:11.1]} 41... Ng4+ {[%clk 0:00:32.7]} 0-1

[Event "*** Titled Tuesday Blitz"]
[Site "Chess.com"]
[Date "2021.03.09"]
[Round "7"]
[White "Bastiandash"]
[Black "Beca95"]
[Result "0-1"]
[WhiteElo "2467"]
[BlackElo "2865"]
[TimeControl "180+1"]
[EndTime "11:21:29 PST"]
[Termination "Beca95 won on time"]

1. d4 {[%clk 0:03:00.9]} 1... Nf6 {[%clk 0:02:58.3]} 2. Nf3 {[%clk 0:03:01.3]}
2... e6 {[%clk 0:02:57.4]} 3. c3 {[%clk 0:03:01.1]} 3... b6 {[%clk 0:02:56.9]}
4. Bg5 {[%clk 0:03:01.7]} 4... Bb7 {[%clk 0:02:57.2]} 5. Nbd2 {[%clk 0:03:02.4]}
5... d5 {[%clk 0:02:53.6]} 6. e3 {[%clk 0:03:02.6]} 6... Nbd7 {[%clk 0:02:52.6]}
7. Bd3 {[%clk 0:03:02.1]} 7... Be7 {[%clk 0:02:51.7]} 8. O-O {[%clk 0:02:58]}
8... Ne4 {[%clk 0:02:51.7]} 9. Bxe7 {[%clk 0:02:54.8]} 9... Qxe7 {[%clk
0:02:52.6]} 10. Ne5 {[%clk 0:02:52.1]} 10... Nxe5 {[%clk 0:02:49.1]} 11. dxe5
{[%clk 0:02:53]} 11... O-O-O {[%clk 0:02:49.1]} 12. Qe2 {[%clk 0:02:47.1]} 12...
Kb8 {[%clk 0:02:47.9]} 13. Rad1 {[%clk 0:02:38.4]} 13... f6 {[%clk 0:02:46.9]}
14. exf6 {[%clk 0:02:38.3]} 14... gxf6 {[%clk 0:02:47.8]} 15. Nxe4 {[%clk
0:02:29.5]} 15... dxe4 {[%clk 0:02:45.2]} 16. Ba6 {[%clk 0:02:29.9]} 16... Bd5
{[%clk 0:02:42.3]} 17. c4 {[%clk 0:02:23]} 17... Bc6 {[%clk 0:02:41.9]} 18.
Rxd8+ {[%clk 0:02:18.9]} 18... Rxd8 {[%clk 0:02:40.2]} 19. Rd1 {[%clk
0:02:19.8]} 19... Rd7 {[%clk 0:02:28.8]} 20. Bb5 {[%clk 0:02:04.5]} 20... Bxb5
{[%clk 0:02:24.6]} 21. cxb5 {[%clk 0:02:03.5]} 21... Qd8 {[%clk 0:02:25.2]} 22.
Rxd7 {[%clk 0:01:55]} 22... Qxd7 {[%clk 0:02:26.1]} 23. h3 {[%clk 0:01:52]}
23... f5 {[%clk 0:02:25.7]} 24. Qc4 {[%clk 0:01:48.4]} 24... Kb7 {[%clk
0:02:22.6]} 25. a4 {[%clk 0:01:47]} 25... c6 {[%clk 0:02:22.1]} 26. bxc6+ {[%clk
0:01:41.8]} 26... Qxc6 {[%clk 0:02:21.7]} 27. Qd4 {[%clk 0:01:41.8]} 27... Ka6
{[%clk 0:02:14]} 28. b4 {[%clk 0:01:31.6]} 28... Qxa4 {[%clk 0:01:55.5]} 29.
Qc4+ {[%clk 0:01:29.5]} 29... Kb7 {[%clk 0:01:54]} 30. g3 {[%clk 0:01:13.2]}
30... Qd7 {[%clk 0:01:50.5]} 31. Kg2 {[%clk 0:01:07.2]} 31... a5 {[%clk
0:01:45.5]} 32. bxa5 {[%clk 0:01:06.8]} 32... bxa5 {[%clk 0:01:45.9]} 33. Qb3+
{[%clk 0:01:07.3]} 33... Ka7 {[%clk 0:01:43.1]} 34. Qc3 {[%clk 0:01:04.9]} 34...
Qd5 {[%clk 0:01:38.5]} 35. Qc2 {[%clk 0:00:50.8]} 35... Kb6 {[%clk 0:01:35.1]}
36. Qb2+ {[%clk 0:00:48.5]} 36... Kc6 {[%clk 0:01:34.2]} 37. Qc3+ {[%clk
0:00:47.7]} 37... Kb5 {[%clk 0:01:31.7]} 38. h4 {[%clk 0:00:27.8]} 38... h5
{[%clk 0:01:26.6]} 39. Qa3 {[%clk 0:00:18.6]} 39... a4 {[%clk 0:01:25.9]} 40.
Qb2+ {[%clk 0:00:17.8]} 40... Ka6 {[%clk 0:01:22.5]} 41. Qb4 {[%clk 0:00:17.4]}
41... Qb3 {[%clk 0:01:14.1]} 42. Qd6+ {[%clk 0:00:17]} 42... Kb5 {[%clk
0:01:14.2]} 43. Qe5+ {[%clk 0:00:14.6]} 43... Kb4 {[%clk 0:01:12.5]} 44. Qd6+
{[%clk 0:00:14]} 44... Kc3 {[%clk 0:01:12]} 45. Qd4+ {[%clk 0:00:12.4]} 45...
Kc2 {[%clk 0:01:12.3]} 46. Qc5+ {[%clk 0:00:13.3]} 46... Kb1 {[%clk 0:01:12.4]}
47. g4 {[%clk 0:00:05.9]} 47... a3 {[%clk 0:01:07.8]} 48. gxh5 {[%clk
0:00:05.3]} 48... a2 {[%clk 0:01:07.9]} 49. h6 {[%clk 0:00:05.8]} 49... a1=Q
{[%clk 0:01:07.8]} 50. Qc7 {[%clk 0:00:02.5]} 50... Qh8 {[%clk 0:01:05.1]} 0-1

[Event "*** Titled Tuesday Blitz"]
[Site "Chess.com"]
[Date "2021.03.09"]
[Round "7"]
[White "pfalcon1949"]
[Black "InitiatingASC"]
[Result "0-1"]
[WhiteElo "2057"]
[BlackElo "2415"]
[TimeControl "180+1"]
[EndTime "11:21:30 PST"]
[Termination "InitiatingASC won on time"]

1. c4 {[%clk 0:03:00.9]} 1... Nf6 {[%clk 0:02:59.2]} 2. Nc3 {[%clk 0:03:00.3]}
2... e6 {[%clk 0:02:58.2]} 3. g3 {[%clk 0:03:00.7]} 3... d5 {[%clk 0:02:56.2]}
4. cxd5 {[%clk 0:03:00.5]} 4... exd5 {[%clk 0:02:56.4]} 5. Bg2 {[%clk
0:03:00.8]} 5... c6 {[%clk 0:02:57]} 6. d3 {[%clk 0:02:59.7]} 6... Be7 {[%clk
0:02:57.5]} 7. Nf3 {[%clk 0:02:59.8]} 7... O-O {[%clk 0:02:58.1]} 8. O-O {[%clk
0:02:59.9]} 8... Nbd7 {[%clk 0:02:58.8]} 9. Bg5 {[%clk 0:02:50.3]} 9... Re8
{[%clk 0:02:56.6]} 10. Rc1 {[%clk 0:02:49.9]} 10... Bf8 {[%clk 0:02:55.4]} 11.
Qc2 {[%clk 0:02:49.4]} 11... h6 {[%clk 0:02:54.8]} 12. Bd2 {[%clk 0:02:43.9]}
12... Ne5 {[%clk 0:02:52.7]} 13. Nxe5 {[%clk 0:02:42.6]} 13... Rxe5 {[%clk
0:02:53]} 14. a3 {[%clk 0:02:33.9]} 14... Bg4 {[%clk 0:02:49.9]} 15. Bf4 {[%clk
0:02:29.5]} 15... Re8 {[%clk 0:02:42.3]} 16. h3 {[%clk 0:02:29.6]} 16... Bh5
{[%clk 0:02:39]} 17. Rfe1 {[%clk 0:02:21.4]} 17... a5 {[%clk 0:02:37.2]} 18. Kh2
{[%clk 0:02:05]} 18... Nd7 {[%clk 0:02:14.7]} 19. Na4 {[%clk 0:02:00.9]} 19...
b5 {[%clk 0:02:03.4]} 20. Nc3 {[%clk 0:01:57.6]} 20... Nc5 {[%clk 0:01:58.2]}
21. Nb1 {[%clk 0:01:45.2]} 21... Ra6 {[%clk 0:01:53.9]} 22. Be3 {[%clk
0:01:38.9]} 22... Ne6 {[%clk 0:01:49.8]} 23. Bd2 {[%clk 0:01:27.3]} 23... b4
{[%clk 0:01:40.7]} 24. axb4 {[%clk 0:01:22.1]} 24... axb4 {[%clk 0:01:40.7]} 25.
e3 {[%clk 0:01:11.1]} 25... c5 {[%clk 0:01:32.4]} 26. Qb3 {[%clk 0:01:04.7]}
26... Rd6 {[%clk 0:01:26]} 27. Qa4 {[%clk 0:00:50.2]} 27... Bg6 {[%clk
0:01:22.6]} 28. d4 {[%clk 0:00:34.8]} 28... Rb6 {[%clk 0:01:15.9]} 29. dxc5
{[%clk 0:00:32.3]} 29... Nxc5 {[%clk 0:01:13]} 30. Qd1 {[%clk 0:00:30.9]} 30...
Nd3 {[%clk 0:01:09.2]} 31. Qg4 {[%clk 0:00:30.1]} 31... Nxf2 {[%clk 0:01:03.8]}
32. Qf3 {[%clk 0:00:20.2]} 32... Nd3 {[%clk 0:00:59.9]} 33. Qxd5 {[%clk
0:00:20.1]} 33... Qxd5 {[%clk 0:00:54.6]} 34. Bxd5 {[%clk 0:00:21]} 34... Nxe1
{[%clk 0:00:55.2]} 35. Rxe1 {[%clk 0:00:20.6]} 35... Rd6 {[%clk 0:00:47.8]} 36.
Bc4 {[%clk 0:00:17.6]} 36... Bxb1 {[%clk 0:00:46.1]} 37. Bxb4 {[%clk 0:00:14.9]}
37... Bd3 {[%clk 0:00:36.1]} 38. Bxd6 {[%clk 0:00:12.2]} 38... Bxc4 {[%clk
0:00:36.4]} 39. Bxf8 {[%clk 0:00:03.6]} 39... Kxf8 {[%clk 0:00:35]} 40. Rc1
{[%clk 0:00:03.3]} 40... Be6 {[%clk 0:00:33.2]} 41. g4 {[%clk 0:00:02.8]} 41...
Rc8 {[%clk 0:00:31.8]} 0-1

[Event "*** Titled Tuesday Blitz"]
[Site "Chess.com"]
[Date "2021.03.09"]
[Round "7"]
[White "PrinceMurad09"]
[Black "anon102030"]
[Result "1-0"]
[WhiteElo "2573"]
[BlackElo "2680"]
[TimeControl "180+1"]
[EndTime "11:21:36 PST"]
[Termination "PrinceMurad09 won by resignation"]

1. e4 {[%clk 0:03:00.9]} 1... e5 {[%clk 0:03:00.2]} 2. Nf3 {[%clk 0:03:01.1]}
2... Nc6 {[%clk 0:02:59.6]} 3. Bc4 {[%clk 0:03:00.9]} 3... Bc5 {[%clk
0:02:59.2]} 4. O-O {[%clk 0:03:00.7]} 4... d6 {[%clk 0:02:58.7]} 5. h3 {[%clk
0:03:00.1]} 5... Nge7 {[%clk 0:02:57.5]} 6. d3 {[%clk 0:02:59.4]} 6... h6 {[%clk
0:02:55.5]} 7. c3 {[%clk 0:02:58.6]} 7... O-O {[%clk 0:02:54.9]} 8. a4 {[%clk
0:02:58.5]} 8... a5 {[%clk 0:02:53]} 9. Nbd2 {[%clk 0:02:58.2]} 9... Kh8 {[%clk
0:02:51.4]} 10. Nb3 {[%clk 0:02:46.4]} 10... Bb6 {[%clk 0:02:50]} 11. d4 {[%clk
0:02:46.6]} 11... f5 {[%clk 0:02:44.3]} 12. exf5 {[%clk 0:02:44.9]} 12... Nxf5
{[%clk 0:02:39.7]} 13. dxe5 {[%clk 0:02:44.5]} 13... Ng3 {[%clk 0:02:21]} 14.
Re1 {[%clk 0:02:36.8]} 14... Nxe5 {[%clk 0:02:21.2]} 15. Nxe5 {[%clk 0:02:06.7]}
15... Bxf2+ {[%clk 0:02:20]} 16. Kh2 {[%clk 0:02:05.8]} 16... dxe5 {[%clk
0:02:12]} 17. Qxd8 {[%clk 0:02:05.6]} 17... Rxd8 {[%clk 0:02:11.3]} 18. Rxe5
{[%clk 0:02:03.4]} 18... Nf5 {[%clk 0:02:06]} 19. Rd5 {[%clk 0:01:50.9]} 19...
Be6 {[%clk 0:01:50]} 20. Rxd8+ {[%clk 0:00:51.2]} 20... Rxd8 {[%clk 0:01:50.9]}
21. Bf4 {[%clk 0:00:51.4]} 21... Bxc4 {[%clk 0:01:49.1]} 22. Nxa5 {[%clk
0:00:51.7]} 22... Bd5 {[%clk 0:01:45.9]} 23. Bxc7 {[%clk 0:00:51.8]} 23... Rd7
{[%clk 0:01:43.6]} 24. Rf1 {[%clk 0:00:49.3]} 24... Rxc7 {[%clk 0:01:17.1]} 25.
Rxf2 {[%clk 0:00:49.6]} 25... Ne3 {[%clk 0:01:09.9]} 26. Re2 {[%clk 0:00:43.1]}
26... Re7 {[%clk 0:01:10]} 27. c4 {[%clk 0:00:25.2]} 27... Nf1+ {[%clk
0:01:03.3]} 28. Kg1 {[%clk 0:00:25.8]} 28... Rxe2 {[%clk 0:01:03.3]} 29. Kxf1
{[%clk 0:00:26.4]} 29... Rxg2 {[%clk 0:00:58.2]} 30. cxd5 {[%clk 0:00:26.5]}
30... Rxb2 {[%clk 0:00:59.1]} 31. d6 {[%clk 0:00:23.3]} 31... Rb6 {[%clk
0:00:39.5]} 32. Nc4 {[%clk 0:00:19.6]} 32... Ra6 {[%clk 0:00:31.8]} 33. d7
{[%clk 0:00:14.9]} 33... Ra8 {[%clk 0:00:30.7]} 34. Nd6 {[%clk 0:00:15.5]} 34...
b6 {[%clk 0:00:08.7]} 35. Nc8 {[%clk 0:00:15]} 1-0

[Event "*** Titled Tuesday Blitz"]
[Site "Chess.com"]
[Date "2021.03.09"]
[Round "7"]
[White "lamomiablanca"]
[Black "Anton_Demchenko"]
[Result "1-0"]
[WhiteElo "2427"]
[BlackElo "2854"]
[TimeControl "180+1"]
[EndTime "11:21:36 PST"]
[Termination "lamomiablanca won by resignation"]

1. e4 {[%clk 0:03:00.9]} 1... c5 {[%clk 0:02:57.6]} 2. d3 {[%clk 0:03:00.4]}
2... b6 {[%clk 0:02:54.1]} 3. g3 {[%clk 0:02:59.3]} 3... Bb7 {[%clk 0:02:54.7]}
4. Bg2 {[%clk 0:02:59.6]} 4... e6 {[%clk 0:02:55.1]} 5. f4 {[%clk 0:02:56.7]}
5... g6 {[%clk 0:02:55.1]} 6. Nf3 {[%clk 0:02:56.2]} 6... Bg7 {[%clk 0:02:55.7]}
7. O-O {[%clk 0:02:56.3]} 7... Ne7 {[%clk 0:02:56.1]} 8. c3 {[%clk 0:02:54.7]}
8... f5 {[%clk 0:02:54]} 9. Qe2 {[%clk 0:02:51.6]} 9... O-O {[%clk 0:02:52.9]}
10. Na3 {[%clk 0:02:48.4]} 10... Nbc6 {[%clk 0:02:26.8]} 11. Nc4 {[%clk
0:02:41.4]} 11... fxe4 {[%clk 0:02:27.1]} 12. dxe4 {[%clk 0:02:39]} 12... Ba6
{[%clk 0:02:27.1]} 13. e5 {[%clk 0:02:02.3]} 13... Na5 {[%clk 0:02:24.1]} 14.
Nfd2 {[%clk 0:01:58.8]} 14... Nd5 {[%clk 0:02:07.5]} 15. Qe4 {[%clk 0:01:51.8]}
15... Kh8 {[%clk 0:01:45.6]} 16. Rd1 {[%clk 0:01:47.6]} 16... g5 {[%clk
0:01:43.6]} 17. Nxa5 {[%clk 0:01:41.5]} 17... bxa5 {[%clk 0:01:42.8]} 18. c4
{[%clk 0:01:37.5]} 18... Nb6 {[%clk 0:01:34.6]} 19. Nb3 {[%clk 0:01:19.8]} 19...
Bxc4 {[%clk 0:01:28.5]} 20. Nxc5 {[%clk 0:01:12.1]} 20... Bd5 {[%clk 0:01:29]}
21. Qe2 {[%clk 0:01:10.6]} 21... gxf4 {[%clk 0:01:27.9]} 22. Bxf4 {[%clk
0:01:09.6]} 22... Rc8 {[%clk 0:01:25.7]} 23. Rac1 {[%clk 0:01:08.2]} 23... Qe7
{[%clk 0:01:22.8]} 24. Ne4 {[%clk 0:01:03.5]} 24... Rxc1 {[%clk 0:01:04]} 25.
Rxc1 {[%clk 0:01:02.4]} 25... Bxa2 {[%clk 0:01:04.7]} 26. Bg5 {[%clk 0:00:55.5]}
26... Qb4 {[%clk 0:01:03.2]} 27. Nf6 {[%clk 0:00:48.2]} 27... Qd4+ {[%clk
0:00:54.1]} 28. Kh1 {[%clk 0:00:46.8]} 28... h6 {[%clk 0:00:25.2]} 29. Qc2
{[%clk 0:00:33.9]} 29... Bxf6 {[%clk 0:00:14.1]} 30. Bxf6+ {[%clk 0:00:33.7]}
30... Rxf6 {[%clk 0:00:14]} 31. exf6 {[%clk 0:00:33.7]} 31... Qxf6 {[%clk
0:00:14]} 32. b3 {[%clk 0:00:32.7]} 32... Qg5 {[%clk 0:00:03]} 33. Rf1 {[%clk
0:00:31.5]} 33... Qb5 {[%clk 0:00:01.8]} 34. Qxa2 {[%clk 0:00:29.9]} 34... a4
{[%clk 0:00:02.1]} 35. Qa1+ {[%clk 0:00:28.2]} 35... Kg8 {[%clk 0:00:01.5]} 36.
Qf6 {[%clk 0:00:27.2]} 36... Qg5 {[%clk 0:00:01.4]} 37. Qf8+ {[%clk 0:00:26.1]}
1-0

[Event "*** Titled Tuesday Blitz"]
[Site "Chess.com"]
[Date "2021.03.09"]
[Round "7"]
[White "TorFredrikKaasen"]
[Black "ural58"]
[Result "0-1"]
[WhiteElo "2690"]
[BlackElo "2583"]
[TimeControl "180+1"]
[EndTime "11:21:40 PST"]
[Termination "ural58 won by resignation"]

1. c4 {[%clk 0:03:00.9]} 1... e5 {[%clk 0:02:58.7]} 2. Nc3 {[%clk 0:03:00.7]}
2... Nc6 {[%clk 0:02:57.2]} 3. g3 {[%clk 0:03:01.3]} 3... Bb4 {[%clk 0:02:51.1]}
4. Bg2 {[%clk 0:02:58.1]} 4... Nf6 {[%clk 0:02:50.9]} 5. Nd5 {[%clk 0:02:54.3]}
5... Bd6 {[%clk 0:02:50.5]} 6. d3 {[%clk 0:02:53]} 6... O-O {[%clk 0:02:47.6]}
7. Nf3 {[%clk 0:02:51.3]} 7... Nxd5 {[%clk 0:02:11.6]} 8. cxd5 {[%clk 0:02:50]}
8... Ne7 {[%clk 0:02:12.5]} 9. Nd2 {[%clk 0:02:50.1]} 9... c6 {[%clk 0:02:09.9]}
10. dxc6 {[%clk 0:02:49.5]} 10... dxc6 {[%clk 0:02:09.2]} 11. O-O {[%clk
0:02:45.9]} 11... Bg4 {[%clk 0:02:05.3]} 12. Nc4 {[%clk 0:02:40.2]} 12... Bc7
{[%clk 0:02:04.6]} 13. b4 {[%clk 0:02:40.4]} 13... Nd5 {[%clk 0:02:02.1]} 14.
Bb2 {[%clk 0:02:34.6]} 14... Re8 {[%clk 0:01:44.5]} 15. a3 {[%clk 0:02:25.2]}
15... Qd7 {[%clk 0:01:44.6]} 16. Rc1 {[%clk 0:02:23.7]} 16... Bh3 {[%clk
0:01:40.7]} 17. e3 {[%clk 0:01:55.1]} 17... Bxg2 {[%clk 0:01:39.7]} 18. Kxg2
{[%clk 0:01:56]} 18... Rad8 {[%clk 0:01:38.9]} 19. Qf3 {[%clk 0:01:45.4]} 19...
Qe6 {[%clk 0:01:33.7]} 20. Rfd1 {[%clk 0:01:40.5]} 20... f5 {[%clk 0:01:31.6]}
21. e4 {[%clk 0:01:37.8]} 21... Ne7 {[%clk 0:01:26]} 22. Re1 {[%clk 0:01:22.1]}
22... f4 {[%clk 0:01:00.5]} 23. h4 {[%clk 0:00:36.6]} 23... b5 {[%clk
0:00:52.4]} 24. Nd2 {[%clk 0:00:22.7]} 24... fxg3 {[%clk 0:00:51.6]} 25. fxg3
{[%clk 0:00:21.2]} 25... Rf8 {[%clk 0:00:51.6]} 26. Qe3 {[%clk 0:00:19.8]} 26...
Bb6 {[%clk 0:00:51.2]} 27. Rc5 {[%clk 0:00:18]} 27... Bxc5 {[%clk 0:00:50.2]}
28. bxc5 {[%clk 0:00:18.9]} 28... Qd7 {[%clk 0:00:44]} 29. Bxe5 {[%clk
0:00:09.2]} 29... Qxd3 {[%clk 0:00:44]} 30. Bd6 {[%clk 0:00:08.2]} 30... Qxe3
{[%clk 0:00:43.4]} 31. Rxe3 {[%clk 0:00:09.1]} 31... Rfe8 {[%clk 0:00:42.8]} 32.
Nf3 {[%clk 0:00:08.9]} 32... Nc8 {[%clk 0:00:41.7]} 33. e5 {[%clk 0:00:09.4]}
33... Nxd6 {[%clk 0:00:41.8]} 34. cxd6 {[%clk 0:00:09.9]} 34... Rxd6 {[%clk
0:00:41.8]} 35. exd6 {[%clk 0:00:06.3]} 35... Rxe3 {[%clk 0:00:41.7]} 36. d7
{[%clk 0:00:04.8]} 36... Rd3 {[%clk 0:00:41.5]} 37. Ne5 {[%clk 0:00:05.3]} 37...
Rd2+ {[%clk 0:00:38.7]} 38. Kf3 {[%clk 0:00:05.4]} 38... Kf8 {[%clk 0:00:39.2]}
39. Ke3 {[%clk 0:00:05.9]} 39... Rd6 {[%clk 0:00:37.5]} 40. Ke4 {[%clk
0:00:03.7]} 40... Ke7 {[%clk 0:00:37.4]} 41. Nf7 {[%clk 0:00:02.1]} 41... Kxf7
{[%clk 0:00:35.9]} 0-1

[Event "*** Titled Tuesday Blitz"]
[Site "Chess.com"]
[Date "2021.03.09"]
[Round "7"]
[White "Michaelson_11"]
[Black "FMalexhdez"]
[Result "1-0"]
[WhiteElo "2275"]
[BlackElo "2169"]
[TimeControl "180+1"]
[EndTime "11:21:40 PST"]
[Termination "Michaelson_11 won on time"]

1. e4 {[%clk 0:03:00.9]} 1... c5 {[%clk 0:02:59.1]} 2. Nc3 {[%clk 0:02:59.7]}
2... d6 {[%clk 0:02:58.9]} 3. d4 {[%clk 0:02:58.5]} 3... cxd4 {[%clk 0:02:57.7]}
4. Qxd4 {[%clk 0:02:59.4]} 4... Nc6 {[%clk 0:02:57.3]} 5. Qd2 {[%clk 0:03:00]}
5... g6 {[%clk 0:02:55.1]} 6. b3 {[%clk 0:02:59.4]} 6... Bg7 {[%clk 0:02:55.3]}
7. Bb2 {[%clk 0:02:58.5]} 7... Nf6 {[%clk 0:02:55.6]} 8. O-O-O {[%clk
0:02:45.4]} 8... O-O {[%clk 0:02:53.2]} 9. f3 {[%clk 0:02:45.2]} 9... a6 {[%clk
0:02:44.2]} 10. h4 {[%clk 0:02:36.1]} 10... b5 {[%clk 0:02:37.7]} 11. g4 {[%clk
0:02:29.9]} 11... b4 {[%clk 0:02:34.7]} 12. Nd5 {[%clk 0:02:29.6]} 12... Nxd5
{[%clk 0:02:34.6]} 13. exd5 {[%clk 0:02:25.1]} 13... Bxb2+ {[%clk 0:02:24.8]}
14. Kxb2 {[%clk 0:02:26]} 14... Ne5 {[%clk 0:02:20.7]} 15. h5 {[%clk 0:02:23.1]}
15... e6 {[%clk 0:01:45.1]} 16. Qh6 {[%clk 0:01:19.7]} 16... Qf6 {[%clk
0:01:33.3]} 17. Kb1 {[%clk 0:01:18.4]} 17... Qg7 {[%clk 0:01:27.6]} 18. Qf4
{[%clk 0:01:06.4]} 18... exd5 {[%clk 0:01:16.6]} 19. Ne2 {[%clk 0:01:02]} 19...
Be6 {[%clk 0:01:10.4]} 20. Nd4 {[%clk 0:00:57.6]} 20... Rac8 {[%clk 0:01:07.5]}
21. h6 {[%clk 0:00:32.1]} 21... Qh8 {[%clk 0:01:05.7]} 22. Bd3 {[%clk
0:00:23.5]} 22... Rc3 {[%clk 0:00:50.5]} 23. Rhe1 {[%clk 0:00:10.6]} 23... Rfc8
{[%clk 0:00:17.4]} 24. Re2 {[%clk 0:00:10.6]} 24... Nxd3 {[%clk 0:00:13.8]} 25.
Rxd3 {[%clk 0:00:10.2]} 25... Rxd3 {[%clk 0:00:13.3]} 26. cxd3 {[%clk
0:00:11.1]} 26... Bd7 {[%clk 0:00:10.7]} 27. Re7 {[%clk 0:00:11]} 27... Be8
{[%clk 0:00:10]} 28. Qe3 {[%clk 0:00:09.4]} 28... Bb5 {[%clk 0:00:07.6]} 29.
Nxb5 {[%clk 0:00:06.3]} 29... Rf8 {[%clk 0:00:02.4]} 30. Nxd6 {[%clk 0:00:05.9]}
30... Qc3 {[%clk 0:00:01.4]} 31. Re8 {[%clk 0:00:05.7]} 1-0